bitfinex-derivatives/quotes_SOLF0:USTF0_20260215
["timestamp","ask_amount","ask_price","bid_price","bid_amount"]
[1771148312151,3.9400944,90.13,90.082,24.24273085]
[1771148312758,9.9908,90.123,90.084,24.44494279]
[1771148314758,9.9908,90.123,90.085,24.51452112]
[1771148317949,9.9916,90.116,90.085,24.51452112]
[1771148318151,3.9400944,90.13,90.085,24.51452112]
[1771148319857,9.9909,90.123,90.085,24.51452112]
[1771148321059,9.9914,90.118,90.085,24.51452112]
[1771148321263,3.9400944,90.12,90.085,24.51452112]
[1771148321655,9.992,90.113,90.085,24.51452112]
[1771148324554,9.9927,90.107,90.085,24.51452112]
[1771148326761,7.96595291,90.147,90.085,24.51452112]
[1771148326960,7.96595291,90.147,90.053,19.9971]
[1771148326961,3.9400944,90.14,90.091,24.71544674]
[1771148327861,9.9901,90.13,90.091,24.71544674]
[1771148328963,9.9912,90.119,90.091,24.71544674]
[1771148329170,9.9912,90.119,90.08,9.9955]
[1771148329369,3.9400944,90.12,90.079,24.69581693]
[1771148330863,9.9924,90.109,90.079,24.69581693]
[1771148337168,3.9400944,90.13,90.079,24.69581693]
[1771148337770,118.56,90.144,90.091,24.76327043]
[1771148338163,3.9400944,90.15,90.091,24.76327043]
[1771148338368,8.01858404,90.149,90.091,24.76327043]
[1771148338673,3.9400944,90.14,90.091,24.76327043]
[1771148338871,9.99,90.13,90.093,24.76279171]
[1771148339274,3.9400944,90.15,90.093,24.76279171]
[1771148339678,9.9889,90.14,90.105,24.75637424]
[1771148339874,3.9400944,90.17,90.111,24.75637424]
[1771148340073,8.01997683,90.169,90.111,24.75637424]
[1771148340274,8.01997683,90.168,90.111,24.75637424]
[1771148340476,9.9885,90.144,90.111,24.75637424]
[1771148341075,3.9400944,90.14,90.091,24.75589931]
[1771148341577,3.9400944,90.15,90.101,24.75718031]
[1771148341780,3.9400944,90.16,90.101,24.75718031]
[1771148341977,9.9884,90.145,90.101,24.75718031]
[1771148342273,3.9400944,90.17,90.111,24.75718031]
[1771148342474,8.01676119,90.169,90.111,24.75718031]
[1771148342675,3.9400944,90.16,90.111,24.75718031]
[1771148343173,3.9400944,90.15,90.09,3.9400944]
[1771148343376,3.9400944,90.14,90.098,24.75671733]
[1771148343881,9.9901,90.13,90.098,24.75671733]
[1771148344177,3.9400944,90.15,90.098,24.75671733]
[1771148344676,88.42,90.177,90.098,24.75671733]
[1771148344677,9.99,90.13,90.098,24.75671733]
[1771148350672,3.9400944,90.16,90.101,24.57231845]
[1771148350874,3.9400944,90.15,90.111,24.57231845]
[1771148351080,3.9400944,90.15,90.091,24.57231845]
[1771148352082,9.9901,90.13,90.091,24.57231845]
[1771148353580,9.9893,90.137,90.091,24.57231845]
[1771148354285,9.9893,90.137,90.09,3.9400944]
[1771148354286,9.9893,90.137,90.094,24.61853211]
[1771148354979,9.99,90.131,90.094,24.61853211]
[1771148355984,9.9888,90.141,90.096,24.62077653]
[1771148356380,9.9901,90.13,90.096,24.62077653]
[1771148356585,3.9400944,90.15,90.096,24.62077653]
[1771148357179,9.9892,90.138,90.098,24.62059646]
[1771148358680,9.9884,90.145,90.1,28.56570959]
[1771148359793,3.9400944,90.15,90.1,24.62561519]
[1771148360798,9.9899,90.131,90.1,24.62561519]
[1771148364700,9.9892,90.138,90.1,24.62561519]
[1771148366599,3.9400944,90.15,90.1,24.62561519]
[1771148367701,9.9895,90.135,90.1,24.62561519]
[1771148368510,9.9887,90.142,90.1,24.62561519]
[1771148368806,9.9887,90.142,90.1,28.56570959]
[1771148369003,9.9887,90.142,90.1,24.62561519]
[1771148369201,9.9894,90.136,90.102,24.63459709]
[1771148369806,9.99,90.13,90.09,24.61864819]
[1771148370710,9.9893,90.137,90.092,24.61849397]
[1771148371410,9.9886,90.144,90.097,24.61822187]
[1771148372714,9.9886,90.144,90.098,9.9935]
[1771148372913,9.9892,90.138,90.099,24.61807537]
[1771148373314,3.93957887,90.16,90.101,24.61807537]
[1771148373608,47.04070712,90.198,90.068,137.94]
[1771148373609,8.01879117,90.175,90.121,24.64223308]
[1771148373806,3.93957887,90.18,90.121,24.64223308]
[1771148374006,9.9865,90.162,90.124,24.64223308]
[1771148379710,9.9877,90.151,90.111,24.78824466]
[1771148379912,3.93957887,90.16,90.111,24.78824466]
[1771148380114,3.93957887,90.15,90.111,24.78824466]
[1771148381814,9.9888,90.141,90.111,24.78824466]
[1771148382609,9.9888,90.141,90.102,24.83869054]
[1771148383910,3.93957887,90.16,90.102,24.83869054]
[1771148384217,3.93957887,90.15,90.102,24.83869054]
[1771148385607,3.93957887,90.13,90.09,24.84684496]
[1771148386211,9.9917,90.115,90.071,9.9965]
[1771148386517,3.93957887,90.13,90.077,24.84684496]
[1771148387314,3.93957887,90.13,90.08,3.93957887]
[1771148387613,3.93957887,90.13,90.081,24.81225323]
[1771148387816,9.9909,90.123,90.081,24.81225323]
[1771148389216,9.9918,90.114,90.081,24.81225323]
[1771148397822,8.02267408,90.144,90.081,24.81225323]
[1771148397823,9.9925,90.108,90.081,24.81225323]
[1771148401831,3.93957887,90.1,90.061,24.72786085]
[1771148402032,3.93957887,90.1,90.041,24.72786085]
[1771148402328,10.3671489,90.139,90.041,24.72786085]
[1771148402329,3.93957887,90.08,90.041,8.05286085]
[1771148402528,3.93957887,90.09,90.041,8.05286085]
[1771148403229,3.93957887,90.08,90.02,3.93957887]
[1771148403431,3.93957887,90.07,90.01,3.93957887]
[1771148403626,9.9987,90.053,90.014,10.0028]
[1771148403827,3.93957887,90.07,90.02,3.93957887]
[1771148404028,3.93957887,90.08,90.03,3.93957887]
[1771148404232,3.93957887,90.09,90.035,16.68326762]
[1771148405830,9.9953,90.083,90.036,16.66123762]
[1771148409837,9.994,90.094,90.049,16.69140941]
[1771148410230,9.9933,90.101,90.053,16.69140941]
[1771148411036,9.9936,90.099,90.054,16.69119764]
[1771148411940,3.93957887,90.11,90.054,16.69119764]
[1771148412231,9.9925,90.108,90.064,16.73164472]
[1771148412836,438.41348885,90.118,90.064,16.73164472]
[1771148413136,9.9924,90.109,90.067,9.9969]
[1771148413334,3.93957887,90.11,90.068,16.73147375]
[1771148413533,3.93957887,90.11,90.051,16.73656764]
[1771148414738,9.9941,90.094,90.053,16.7364096]
[1771148415842,9.9949,90.087,90.053,16.7364096]
[1771148416138,438.41348885,90.118,90.061,16.72500371]
[1771148416540,9.9933,90.101,90.064,16.72484045]
[1771148417042,438.41348885,90.118,90.064,16.72484045]
[1771148417847,9.9925,90.108,90.064,16.72484045]
[1771148419437,9.9925,90.108,90.066,16.72159957]
[1771148420838,9.9925,90.108,90.068,16.72629015]
[1771148421444,9.9915,90.117,90.07,20.66586902]
[1771148422837,9.9915,90.117,90.08,16.70771082]
[1771148425247,3.93957887,90.1,90.062,16.59456416]
[1771148426549,3.93957887,90.1,90.04,3.93957887]
[1771148426550,139.66,90.116,90.063,16.68185787]
[1771148426748,438.41348885,90.118,90.063,16.68185787]
[1771148427549,448.40488885,90.118,90.076,16.69960692]
[1771148428145,9.9921,90.112,90.076,16.69960692]
[1771148430844,438.41348885,90.118,90.078,16.71622998]
[1771148431551,9.9916,90.116,90.078,16.71622998]
[1771148433947,9.9923,90.11,90.078,16.71622998]
[1771148434345,438.41348885,90.118,90.081,9.9954]
[1771148434550,438.41348885,90.118,90.082,16.77056432]
[1771148435448,438.41348885,90.118,90.084,16.81568307]
[1771148437654,3.94228372,90.12,90.084,16.81568307]
[1771148438955,9.9913,90.119,90.084,16.81568307]
[1771148439151,148.22,90.126,90.084,16.81568307]
[1771148440853,148.22,90.126,90.07,3.94228372]
[1771148440854,158.2105,90.126,90.086,16.78027471]
[1771148441155,9.9905,90.126,90.086,16.78027471]
[1771148441757,13.93348372,90.12,90.086,16.78027471]
[1771148442852,3.94228372,90.11,90.073,16.744463]
[1771148443358,3.94228372,90.11,90.043,20.33368535]
[1771148443359,3.94228372,90.1,90.044,16.744463]
[1771148443748,9.9935,90.099,90.054,16.76416474]
[1771148445758,9.9935,90.099,90.056,16.8667152]
[1771148445959,3.94228372,90.09,90.056,16.8667152]
[1771148448059,3.94228372,90.08,90.042,16.86677654]
[1771148449670,3.94228372,90.08,90.029,16.86846849]
[1771148449852,3.94228372,90.06,90.029,16.86846849]
[1771148450054,3.94228372,90.06,90.017,16.86846849]
[1771148450860,9.9984,90.055,90.017,16.86846849]
[1771148451057,3.94228372,90.07,90.021,16.86843794]
[1771148452253,9.9971,90.067,90.023,16.86455123]
[1771148454964,3.94228372,90.06,90.01,16.89488521]
[1771148455459,9.9995,90.045,90.01,16.89488521]
[1771148457060,3.94228372,90.02,89.973,20.33368535]
[1771148457264,119.24,90.044,89.962,16.87490757]
[1771148457265,3.94228372,90.0,89.962,16.87490757]
[1771148457465,3.94228372,89.98,89.962,16.87490757]
[1771148457662,53.2405,90.039,89.962,16.87490757]
[1771148457863,3.94228372,90.0,89.962,16.87490757]
[1771148458261,3.94228372,90.01,89.962,16.87490757]
[1771148458461,3.94228372,90.02,89.962,16.87490757]
[1771148459265,119.24,90.044,89.916,88.46]
[1771148459266,3.94228372,90.01,89.965,15.0407328]
[1771148460165,3.94228372,90.02,89.971,15.00615851]
[1771148460365,3.94228372,90.03,89.971,15.00615851]
[1771148460873,3.94228372,90.02,89.971,15.00615851]
[1771148461072,3.94228372,90.02,89.97,3.94228372]
[1771148461073,3.94228372,90.0,89.957,15.00619234]
[1771148461260,3.94228372,90.01,89.957,15.00619234]
[1771148461661,10.0025,90.018,89.961,15.12607878]
[1771148461866,3.94228372,90.01,89.961,15.12607878]
[1771148463065,10.0035,90.009,89.961,15.12607878]
[1771148463764,3.94228372,90.01,89.965,15.1063757]
[1771148464270,10.0024,90.019,89.965,15.1063757]
[1771148465067,10.0012,90.029,89.975,15.10647202]
[1771148466769,10.0012,90.029,89.979,15.1468325]
[1771148468267,3.94228372,90.02,89.979,15.1468325]
[1771148468669,10.0012,90.029,89.979,15.1468325]
[1771148470070,3.94228372,90.05,89.991,15.21970358]
[1771148470575,9.9981,90.058,90.011,15.21985698]
[1771148473677,3.94228372,90.05,90.011,15.21985698]
[1771148473879,3.94228372,90.04,89.997,15.30155315]
[1771148474680,3.94228372,90.04,89.999,15.3017406]
[1771148475275,9.9994,90.046,89.999,15.3017406]
[1771148476382,3.94228372,90.04,89.999,15.3017406]
[1771148476880,9.9994,90.046,90.001,15.30376889]
[1771148479382,9.9978,90.06,90.011,15.28385931]
[1771148479575,3.94228372,90.05,90.011,15.28385931]
[1771148480983,9.9992,90.048,90.011,15.28385931]
[1771148482981,9.9999,90.041,89.997,15.27979759]
[1771148484084,9.9999,90.041,89.99,3.94228372]
[1771148484085,3.94228372,90.07,90.011,15.2797368]
[1771148484682,10.34293112,90.118,90.01,3.94228372]
[1771148484683,9.9964,90.073,90.025,15.27989254]
[1771148485486,9.9968,90.069,90.027,10.0014]
[1771148485686,9.9968,90.069,90.025,15.27989254]
[1771148486388,9.9968,90.069,89.96,33.24]
[1771148486389,3.94228372,90.05,90.001,15.22273976]
[1771148487189,10.0008,90.033,90.001,15.22273976]
[1771148490999,10.0,90.04,90.001,15.22273976]
[1771148491293,3.94228372,90.05,90.001,15.22273976]
[1771148492592,9.9998,90.042,90.001,15.22273976]
[1771148494501,10.001,90.032,90.001,15.22273976]
[1771148498706,3.94868011,90.05,90.001,15.22273976]
[1771148499097,10.0,90.04,90.004,15.22710334]
[1771148500300,10.0011,90.031,90.004,15.22710334]
[1771148500603,3.94868011,90.05,90.004,15.22710334]
[1771148501099,3.94868011,90.04,89.991,15.21832002]
[1771148502599,10.0014,90.028,89.992,10.0053]
[1771148502802,10.0014,90.028,89.992,25.24212562]
[1771148504299,10.0014,90.028,89.993,15.23736263]
[1771148505500,10.0023,90.02,89.979,25.24739535]
[1771148505701,10.0023,90.02,89.98,15.24059535]
[1771148507806,10.0034,90.01,89.98,15.24059535]
[1771148511804,8.07197307,90.053,90.001,15.17769765]
[1771148512006,3.94868011,90.06,90.001,15.17769765]
[1771148512205,3.94868011,90.05,90.001,15.17769765]
[1771148512810,10.001,90.032,90.001,15.17769765]
[1771148516815,3.94868011,90.05,90.001,15.17769765]
[1771148516816,10.0002,90.038,90.001,15.17769765]
[1771148519815,10.0002,90.038,90.002,15.08868764]
[1771148520122,9.9995,90.045,90.002,15.08868764]
[1771148520820,9.9995,90.045,90.004,15.08872917]
[1771148521821,9.9995,90.045,90.007,15.07914244]
[1771148522719,9.9995,90.045,90.009,15.07917929]
[1771148522920,9.9988,90.051,90.011,15.07917929]
[1771148523418,155.66868011,90.07,90.011,15.07917929]
[1771148523419,9.9994,90.046,90.011,15.07917929]
[1771148526920,10.0,90.04,90.0,3.94868011]
[1771148527124,10.0,90.04,90.001,15.15328457]
[1771148528321,10.0,90.04,90.003,15.09740208]
[1771148533230,10.0,90.04,90.005,15.09926162]
[1771148535227,9.9992,90.048,90.007,15.10267417]
[1771148535926,9.9993,90.047,90.007,15.10267417]
[1771148536726,9.9993,90.047,90.007,25.10627417]
[1771148536927,9.9993,90.047,90.008,15.10144095]
[1771148541727,10.0,90.04,90.008,15.10144095]
[1771148544031,9.9993,90.046,90.008,15.10144095]
[1771148546335,3.94868011,90.04,89.994,15.11834895]
[1771148546533,3.94868011,90.02,89.973,15.11838511]
[1771148547742,3.94868011,90.02,89.977,10.0069]
[1771148547946,3.94868011,90.02,89.977,25.4196763]
[1771148548347,3.94868011,90.01,89.977,15.4127763]
[1771148548547,3.94868011,90.01,89.951,15.41287399]
[1771148548743,3.94868011,90.0,89.951,15.41287399]
[1771148549350,3.94868011,90.0,89.962,15.41287399]
[1771148549941,3.94868011,89.98,89.95,15.34573154]
[1771148551643,10.0049,89.996,89.95,15.34573154]
[1771148551849,3.94868011,90.01,89.961,15.14189486]
[1771148552943,10.0037,90.007,89.964,15.14193395]
[1771148555250,10.0037,90.007,89.918,20.0271]
[1771148555251,33.35,90.015,89.946,15.13386798]
[1771148555449,3.16144834,90.0,89.946,15.13386798]
[1771148555746,10.0039,90.005,89.962,15.17870779]
[1771148556745,3.16144834,90.01,89.963,10.0085]
[1771148556947,3.16144834,90.02,89.964,15.17875339]
[1771148557649,3.16144834,90.01,89.964,15.17875339]
[1771148557853,10.0037,90.007,89.964,15.17875339]
[1771148561251,10.0044,90.001,89.964,15.17875339]
[1771148562446,3.16144834,89.99,89.949,15.48188067]
[1771148563754,10.0066,89.982,89.949,15.48188067]
[1771148564657,3.16144834,90.01,89.961,15.48558572]
[1771148565857,10.0045,90.0,89.961,15.48558572]
[1771148566758,10.0045,90.0,89.963,15.4994233]
[1771148566957,10.0038,90.007,89.963,15.4994233]
[1771148567455,10.0038,90.007,89.964,15.56317593]
[1771148573456,3.16144834,90.05,89.991,10.58150362]
[1771148573655,3.16144834,90.06,90.011,10.56928643]
[1771148574559,9.9979,90.059,90.013,10.5696601]
[1771148575957,9.9979,90.059,90.015,10.57188453]
[1771148576160,9.997,90.068,90.021,10.57188453]
[1771148577764,9.9958,90.078,90.023,10.56426421]
[1771148577961,9.9958,90.078,90.031,10.56426421]
[1771148579962,9.9969,90.069,90.031,10.56426421]
[1771148581164,9.9959,90.077,90.031,10.56426421]
[1771148582363,3.16144834,90.08,90.032,10.0009]
[1771148582570,3.16144834,90.08,90.033,10.56659957]
[1771148582970,9.9958,90.079,90.033,10.56659957]
[1771148585968,9.9958,90.079,89.987,88.52]
[1771148585969,9.9946,90.09,90.041,10.44145447]
[1771148586367,19.9821,90.122,89.989,33.35]
[1771148586368,3.16144834,90.12,90.06,3.16144834]
[1771148586676,88.52,90.119,90.061,10.44170423]
[1771148586976,9.9925,90.109,90.061,10.44170423]
[1771148587371,3.16144834,90.1,90.061,10.44170423]
[1771148587772,9.9925,90.109,90.061,10.44170423]
[1771148588470,3.16144834,90.09,90.047,10.44581083]
[1771148589170,3.16144834,90.09,90.049,10.44581083]
[1771148589876,9.9937,90.097,90.051,10.48524504]
[1771148590074,3.16144834,90.1,90.051,10.48524504]
[1771148591778,9.9935,90.099,90.052,9.9986]
[1771148591976,9.9935,90.099,90.053,10.44202806]
[1771148592873,88.52,90.103,90.058,10.44226004]
[1771148593070,9.9927,90.107,90.058,10.44226004]
[1771148593980,9.9927,90.107,90.061,10.3458172]
[1771148595077,3.16144834,90.13,90.071,10.34600325]
[1771148595283,3.16144834,90.14,90.091,10.34600325]
[1771148595472,222.06,90.21,90.071,10.34207694]
[1771148595473,3.16144834,90.12,90.071,10.34207694]
[1771148595985,3.16144834,90.12,90.029,33.35]
[1771148595986,3.16144834,90.1,90.051,10.34207694]
[1771148596679,9.9939,90.095,90.052,9.9986]
[1771148596882,3.16144834,90.08,90.036,10.34225565]
[1771148598584,3.16144834,90.11,90.051,10.34981764]
[1771148599191,3.16144834,90.1,90.051,10.34981764]
[1771148599782,3.16144834,90.1,90.06,10.07960167]
[1771148600385,3.16144834,90.1,90.061,9.9976]
[1771148600690,3.16144834,90.1,90.062,10.07965752]
[1771148600983,3.16144834,90.1,90.064,10.07965752]
[1771148601189,9.9924,90.109,90.064,10.07965752]
[1771148606192,9.9924,90.109,90.067,10.07679294]
[1771148606689,9.9916,90.116,90.067,10.07679294]
[1771148606887,3.16144834,90.12,90.067,10.07679294]
[1771148607092,9.9924,90.109,90.067,10.07679294]
[1771148607892,9.9917,90.116,90.068,9.9969]
[1771148608188,9.9917,90.116,90.069,10.06888662]
[1771148608596,3.16144834,90.12,90.07,3.16144834]
[1771148608898,3.16144834,90.12,90.071,10.06893308]
[1771148609788,9.9913,90.119,90.076,20.05844424]
[1771148610189,9.9913,90.119,90.077,10.06244424]
[1771148610395,3.16144834,90.12,90.082,10.06244424]
[1771148610596,9.9904,90.127,90.082,10.06244424]
[1771148611193,9.9904,90.127,90.083,9.9952]
[1771148611398,9.9904,90.127,90.084,10.06248654]
[1771148612689,9.9905,90.126,90.084,10.06248654]
[1771148613993,9.9905,90.126,90.043,19.9993]
[1771148613994,3.94144308,90.14,90.099,10.03347659]
[1771148614200,3.94144308,90.14,90.081,10.03347659]
[1771148614796,9.9892,90.138,90.091,9.9943]
[1771148615001,9.9892,90.138,90.091,20.02780643]
[1771148615200,3.94144308,90.13,90.091,10.03350643]
[1771148615599,9.9913,90.119,90.071,20.06837129]
[1771148615798,3.94144308,90.11,90.071,10.07187129]
[1771148616199,3.94144308,90.11,90.058,10.07187129]
[1771148616601,3.94144308,90.1,90.061,10.07191573]
[1771148617798,9.9935,90.099,90.061,10.07191573]
[1771148618600,9.9942,90.093,90.05,9.9988]
[1771148618805,94.34,90.136,90.048,10.08721791]
[1771148618806,3.94144308,90.09,90.048,10.08721791]
[1771148619201,3.94144308,90.08,90.04,10.0]
[1771148619406,9.9958,90.078,90.034,10.08721791]
[1771148620008,9.9958,90.078,90.037,10.11280612]
[1771148620607,9.9957,90.079,90.037,10.11280612]
[1771148620902,3.94144308,90.08,90.037,10.11280612]
[1771148621103,3.94144308,90.08,90.021,10.11286256]
[1771148621805,9.9963,90.074,90.022,9.99724168]
[1771148622007,3.94144308,90.07,90.022,9.99724168]
[1771148622809,9.9969,90.068,90.022,9.99724168]
[1771148623306,13.93934308,90.06,90.022,9.99724168]
[1771148623910,9.9979,90.06,90.022,9.99724168]
[1771148624105,33.35,90.122,90.031,10.03116072]
[1771148624411,3.94144308,90.1,90.041,10.03116072]
[1771148625807,3.94144308,90.09,90.041,10.03116072]
[1771148626508,13.93604308,90.09,90.044,10.00357513]
[1771148629713,3.94144308,90.07,90.03,10.0059621]
[1771148629914,3.94144308,90.07,90.018,10.0059621]
[1771148630514,3.94144308,90.09,90.03,3.94144308]
[1771148630712,3.94144308,90.09,90.041,10.00597853]
[1771148632118,9.9954,90.082,90.041,10.00597853]
[1771148632716,3.94144308,90.09,90.045,9.99706841]
[1771148633317,9.9955,90.081,90.045,9.99706841]
[1771148634417,33.35,90.119,90.045,9.99706841]
[1771148634620,3.94144308,90.1,90.045,9.99706841]
[1771148635717,9.9945,90.09,90.045,9.99706841]
[1771148636118,13.93594308,90.09,90.045,9.99706841]
[1771148636513,13.93594308,90.09,90.046,9.9992]
[1771148636711,13.93594308,90.09,90.047,10.00834686]
[1771148637623,13.93594308,90.09,90.049,10.00834686]
[1771148639219,9.9945,90.09,90.049,10.00834686]
[1771148640024,13.93704308,90.08,90.037,10.0003]
[1771148640619,3.94144308,90.08,90.023,9.93627268]
[1771148640823,3.94144308,90.07,90.023,9.93627268]
[1771148641721,9.9971,90.067,90.025,10.0016]
[1771148641925,9.9971,90.067,90.025,19.95512701]
[1771148642124,3.94144308,90.09,90.031,9.95352701]
[1771148642324,3.94144308,90.11,90.051,9.95352701]
[1771148642719,9.9925,90.108,90.063,9.95352733]
[1771148642925,3.94144308,90.11,90.063,9.95352733]
[1771148643728,9.9932,90.102,90.063,9.95352733]
[1771148645528,9.9921,90.111,90.065,9.84423025]
[1771148646132,9.9921,90.111,90.068,9.85511163]
[1771148647337,9.9921,90.111,90.069,9.9967]
[1771148647530,3.94144308,90.12,90.071,9.85779259]
[1771148648742,9.9914,90.118,90.072,9.9964]
[1771148651741,9.9914,90.118,90.079,19.89625794]
[1771148652045,9.9905,90.126,90.08,9.90065794]
[1771148652836,9.9905,90.126,90.081,9.9954]
[1771148653244,9.9905,90.126,90.081,19.89604617]
[1771148656143,9.9913,90.119,90.081,19.89604617]
[1771148659946,9.9913,90.119,90.081,9.90064617]
[1771148664752,3.94144308,90.12,90.09,9.88012788]
[1771148665663,9.989,90.139,90.094,9.88756157]
[1771148665854,3.94144308,90.14,90.094,9.88756157]
[1771148666054,3.94144308,90.13,90.081,9.88756157]
[1771148666248,3.94144308,90.12,90.081,19.88296157]
[1771148667247,3.94144308,90.12,90.082,9.88754903]
[1771148667854,9.9913,90.119,90.082,9.88754903]
[1771148671960,3.94144308,90.12,90.069,9.85882445]
[1771148672258,3.94144308,90.11,90.069,9.85882445]
[1771148673851,9.9924,90.109,90.069,9.85882445]
[1771148679654,9.9914,90.118,90.074,9.89228428]
[1771148680057,3.94298819,90.13,90.074,9.89228428]
[1771148680362,9.9913,90.119,90.074,9.89228428]
[1771148681061,9.9913,90.119,90.075,9.9961]
[1771148681252,9.9913,90.119,90.076,9.89227451]
[1771148681658,160.72,90.136,90.079,10.13219611]
[1771148681854,160.72,90.136,90.081,10.13219611]
[1771148682055,3.94298819,90.15,90.091,10.13219611]
[1771148682558,3.94298819,90.13,90.091,10.13219611]
[1771148683765,9.9907,90.124,90.091,10.13219611]
[1771148688166,9.992,90.112,90.076,10.03080354]
[1771148688363,10.29880951,90.16,90.06,20.51663592]
[1771148688364,3.94298819,90.12,90.063,10.03080354]
[1771148689268,3.94298819,90.11,90.073,10.03081559]
[1771148690366,164.2,90.129,90.031,111.34]
[1771148690367,13.93418819,90.12,90.076,10.11292716]
[1771148690769,3.94298819,90.12,90.076,10.11292716]
[1771148691774,9.9918,90.114,90.076,10.11292716]
[1771148694968,165.76,90.126,90.063,10.09475854]
[1771148694969,3.94298819,90.11,90.063,10.09475854]
[1771148695166,3.94298819,90.1,90.063,10.09475854]
[1771148695770,9.9938,90.097,90.063,10.09475854]
[1771148696876,9.9927,90.106,90.063,10.09475854]
[1771148697875,9.9927,90.106,90.064,9.99787322]
[1771148698776,9.9927,90.106,90.065,9.9971]
[1771148698979,9.9927,90.106,90.066,9.99787895]
[1771148700281,9.9927,90.106,90.06,3.94298819]
[1771148700282,3.94298819,90.1,90.051,9.9991511]
[1771148700673,3.94298819,90.12,90.077,9.99915685]
[1771148700878,3.94298819,90.13,90.077,9.99915685]
[1771148701377,237.53031966,90.132,90.044,19.9991]
[1771148701378,3.94298819,90.12,90.082,9.99915685]
[1771148701570,3.94298819,90.11,90.061,10.05795002]
[1771148702378,3.94298819,90.11,90.068,10.05795002]
[1771148703675,9.9918,90.115,90.068,10.05795002]
[1771148703870,9.9918,90.115,90.07,10.0570782]
[1771148704782,9.9918,90.115,90.072,10.05709087]
[1771148709384,3.94298819,90.11,90.072,10.05709087]
[1771148710387,9.9918,90.115,90.076,9.76887562]
[1771148712980,9.9906,90.126,90.082,9.78759801]
[1771148713287,9.9906,90.126,90.08,3.94298819]
[1771148713288,237.53031966,90.132,90.091,9.78759801]
[1771148714787,237.53031966,90.132,90.091,19.78189801]
[1771148714988,237.53031966,90.132,90.092,9.78424661]
[1771148716788,237.53031966,90.132,90.093,9.9941]
[1771148717190,237.53031966,90.132,90.094,10.04265539]
[1771148717898,3.94298819,90.13,90.094,10.04265539]
[1771148723509,9.9884,90.145,90.094,10.04265539]
[1771148724700,9.9884,90.145,90.102,10.07289355]
[1771148725408,9.9882,90.147,90.106,10.07289355]
[1771148726509,9.9888,90.141,90.106,10.07289355]
[1771148726710,3.94298819,90.14,90.106,10.07289355]
[1771148727110,9.9892,90.138,90.106,10.07289355]
[1771148727508,178.48,90.153,90.106,10.07289355]
[1771148727810,3.94298819,90.15,90.106,10.07289355]
[1771148728307,9.988,90.149,90.106,10.07289355]
[1771148729213,3.94298819,90.15,90.107,9.9925]
[1771148729412,9.9872,90.156,90.108,10.07844012]
[1771148730812,9.9861,90.166,90.12,10.09290142]
[1771148731208,3.94298819,90.18,90.121,10.09290142]
[1771148731604,9.984,90.185,90.139,10.03784209]
[1771148731905,3.94298819,90.19,90.139,10.03784209]
[1771148732108,9.9835,90.189,90.139,10.03784209]
[1771148733110,9.9826,90.197,90.149,10.03784949]
[1771148733310,3.94298819,90.19,90.149,10.03784949]
[1771148733510,3.94298819,90.17,90.136,10.03784949]
[1771148733710,9.9842,90.183,90.136,10.03784949]
[1771148733911,3.94298819,90.18,90.136,10.03784949]
[1771148734314,3.94298819,90.17,90.123,9.92608501]
[1771148734811,433.69394409,90.229,90.146,9.92608279]
[1771148734812,3.94298819,90.19,90.146,9.92608279]
[1771148735709,3.94298819,90.18,90.146,9.92608279]
[1771148735904,3.94298819,90.18,90.121,9.91307106]
[1771148736109,3.94298819,90.18,90.12,3.94298819]
[1771148736110,9.9849,90.176,90.131,9.91307106]
[1771148736308,3.94298819,90.19,90.131,9.91307106]
[1771148736910,3.93602503,90.19,90.131,9.91307106]
[1771148737814,9.9838,90.187,90.137,10.12943404]
[1771148739210,9.9846,90.179,90.137,10.12943404]
[1771148740112,3.93602503,90.18,90.137,10.12943404]
[1771148742316,9.9838,90.186,90.137,10.12943404]
[1771148744218,9.9839,90.185,90.137,10.12943404]
[1771148745716,9.9839,90.185,90.141,10.00963383]
[1771148746223,3.93602503,90.18,90.129,10.00963383]
[1771148746516,3.93602503,90.17,90.117,10.00963802]
[1771148747015,3.93602503,90.16,90.117,10.00963802]
[1771148747611,3.93602503,90.16,90.06,33.35]
[1771148747612,3.93602503,90.15,90.104,19.97411017]
[1771148747811,3.93602503,90.15,90.105,9.98121017]
[1771148748313,3.93602503,90.16,90.108,9.98121017]
[1771148748717,3.93602503,90.16,90.1,3.93602503]
[1771148748718,3.93602503,90.17,90.111,9.98121232]
[1771148749813,9.9862,90.165,90.118,10.02745875]
[1771148752121,9.9862,90.165,90.12,10.02727438]
[1771148753716,9.9862,90.165,90.121,9.991]
[1771148753911,9.9862,90.165,90.122,10.02728464]
[1771148755521,9.987,90.158,90.122,10.02728464]